fUSD/lending_fUSD_20240602
["ID","MTS","AMOUNT","RATE_DAILY","PERIOD"]
[328409148,1717359038166,-2053.71551599,0.00014,2]
[328409149,1717359038177,-529.0448,0.00014,2]
[328409150,1717359038212,-3206.36718444,0.00014,2]
[328409151,1717359038224,-2388.829732,0.00014,2]
[328409152,1717359038339,-1941.56591577,0.00014,2]
[328409153,1717359038350,-3389.96530916,0.00014,2]
[328409154,1717359038361,-922.39733341,0.00014,2]
[328409158,1717359040434,-137508.16643514,0.00014,2]
[328409159,1717359040706,-311.62064007,0.00014,2]
[328409160,1717359040723,-5139.73353367,0.00014,2]
[328409161,1717359040735,-426.69999987,0.00014,2]
[328409162,1717359041265,-2.52070697,0.00014,2]
[328409163,1717359041276,-113233.01627718,0.00014,2]
[328409164,1717359041285,-89445.63732458,0.00014,2]
[328409165,1717359041294,-23302.37629344,0.00014,2]
[328409166,1717359041303,-1000.0,0.00014,2]
[328409167,1717359041312,-1000.0,0.00014,2]
[328409168,1717359041320,-1000.0,0.00014,2]
[328409169,1717359041330,-1000.0,0.00014,2]
[328409170,1717359041339,-1000.0,0.00014,2]
[328409171,1717359041348,-1000.0,0.00014,2]
[328409172,1717359041357,-1000.0,0.00014,2]
[328409173,1717359041366,-1000.0,0.00014,2]
[328409174,1717359041374,-1000.0,0.00014,2]
[328409175,1717359041383,-1000.0,0.00014,2]
[328409176,1717359041391,-1000.0,0.00014,2]
[328409177,1717359041401,-1000.0,0.00014,2]
[328409178,1717359041409,-1000.0,0.00014,2]
[328409179,1717359041418,-1000.0,0.00014,2]
[328409180,1717359041427,-1000.0,0.00014,2]
[328409181,1717359041436,-1000.0,0.00014,2]
[328409182,1717359041445,-1000.0,0.00014,2]
[328409183,1717359041454,-1000.0,0.00014,2]
[328409184,1717359041463,-1000.0,0.00014,2]
[328409185,1717359041472,-1000.0,0.00014,2]
[328409186,1717359041481,-455.0,0.00014,2]
[328409187,1717359041490,-1121.13646,0.00014,2]
[328409188,1717359041499,-888.16,0.00014001,2]
[328409189,1717359041508,-415.16,0.00014035,2]
[328409190,1717359041518,-1000.0,0.00014065,2]
[328409191,1717359041527,-415.16,0.00014072,2]
[328409192,1717359041536,-415.16,0.00014109,2]
[328409193,1717359041546,-415.16,0.00014146,2]
[328409194,1717359041556,-415.16,0.00014183,2]
[328409195,1717359041565,-415.16,0.0001422,2]
[328409196,1717359041574,-150.0,0.00014907,2]
[328409197,1717359041583,-751.9104142,0.00015,2]
[328409198,1717359041593,-5021.45579458,0.00015,2]
[328409199,1717359041602,-237.31814666,0.00015,2]
[328409200,1717359041611,-363.44907945,0.00015,2]
[328409201,1717359041620,-1121.13646,0.0001504,2]
[328409202,1717359041630,-667.0,0.000151,2]
[328409203,1717359041639,-2323.0,0.000152,2]
[328409204,1717359041647,-151.0,0.000152,2]
[328409205,1717359041656,-151.0,0.000152,2]
[328409206,1717359041665,-178.884681,0.000152,2]
[328409207,1717359041674,-151.0,0.000152,2]
[328409208,1717359041683,-585.685009,0.000152,2]
[328409209,1717359041692,-151.0,0.000152,2]
[328409210,1717359041701,-585.685009,0.000152,2]
[328409211,1717359041710,-151.0,0.000152,2]
[328409212,1717359041719,-151.0,0.000152,2]
[328409213,1717359041728,-2554.224414,0.000152,2]
[328409214,1717359041737,-2554.224414,0.000152,2]
[328409215,1717359041746,-151.0,0.000152,2]
[328409216,1717359041755,-151.0,0.000152,2]
[328409217,1717359041768,-151.0,0.000152,2]
[328409218,1717359041777,-151.0,0.000152,2]
[328409219,1717359041786,-151.0,0.000152,2]
[328409220,1717359041796,-1742.745998,0.000152,2]
[328409221,1717359041807,-1742.745998,0.000152,2]
[328409222,1717359041816,-151.0,0.000152,2]
[328409223,1717359041825,-151.0,0.000152,2]
[328409224,1717359041834,-151.0,0.000152,2]
[328409225,1717359041844,-151.919391,0.000152,2]
[328409226,1717359041855,-204.519669,0.000152,2]
[328409227,1717359041866,-240.581603,0.000152,2]
[328409228,1717359041875,-204.519669,0.000152,2]
[328409229,1717359041884,-151.0,0.000152,2]
[328409230,1717359041894,-240.581603,0.000152,2]
[328409231,1717359041903,-151.0,0.000152,2]
[328409232,1717359041912,-155.776781,0.000152,2]
[328409233,1717359041921,-2278.514732,0.000152,2]
[328409234,1717359041930,-2278.514732,0.000152,2]
[328409235,1717359041939,-1303.53,0.00015594,2]
[328409236,1717359041948,-1000.0,0.00015824,2]
[328409237,1717359041957,-888.16,0.00016264,2]
[328409238,1717359041966,-1121.13646,0.0001629,2]
[328409239,1717359041975,-151.0,0.0001636,2]
[328409240,1717359041984,-800.418302,0.0001636,2]
[328409241,1717359041992,-800.418302,0.0001636,2]
[328409242,1717359042001,-218.345752,0.0001636,2]
[328409243,1717359042010,-218.345752,0.0001636,2]
[328409244,1717359042019,-151.0,0.0001636,2]
[328409245,1717359042028,-411.99597,0.0001636,2]
[328409246,1717359042038,-151.0,0.0001636,2]
[328409247,1717359042047,-411.99597,0.0001636,2]
[328409248,1717359042055,-696.759044,0.00016438,2]
[328409249,1717359042065,-696.759044,0.00016438,2]
[328409250,1717359042075,-1121.13646,0.0001754,2]
[328409251,1717359042084,-1000.0,0.00017582,2]
[328409252,1717359042093,-12015.82597771,0.00018,2]
[328409253,1717359042102,-186.96,0.00018034,2]
[328409254,1717359042111,-1303.53,0.00018334,2]
[328409255,1717359042122,-888.16,0.00018528,2]
[328409256,1717359042131,-3806.0,0.00018716,2]
[328409257,1717359042140,-1121.13646,0.0001879,2]
[328409258,1717359042149,-37989.0,0.00018931,2]
[328409259,1717359042158,-289.0,0.00018931,2]
[328409260,1717359042167,-5765.0,0.00018931,2]
[328409261,1717359042176,-1467.0,0.00018931,2]
[328409262,1717359042185,-5146.0,0.00018931,2]
[328409263,1717359042194,-1110.281,0.00018931,2]
[328409264,1717359042204,-2639.84406136,0.00019279,2]
[328409265,1717359042213,-150.0,0.00019315,2]
[328409266,1717359042222,-300.0,0.00019315,2]
[328409267,1717359042231,-150.0,0.00019315,2]
[328409268,1717359042240,-150.0,0.00019315,2]
[328409269,1717359042250,-1000.0,0.0001934,2]
[328409270,1717359042259,-161.0,0.0001938,2]
[328409271,1717359042267,-162.438,0.0001938,2]
[328409272,1717359042276,-213.0,0.0001938,2]
[328409273,1717359042286,-254.567,0.0001938,2]
[328409274,1717359042295,-264.0,0.0001938,2]
[328409275,1717359042304,-195.01,0.0001938,2]
[328409276,1717359042313,-259.538,0.0001938,2]
[328409277,1717359042322,-226.077,0.0001938,2]
[328409278,1717359042332,-157.332,0.0001938,2]
[328409279,1717359042342,-164.694,0.0001938,2]
[328409280,1717359042351,-277.28,0.0001938,2]
[328409281,1717359042360,-152.729,0.0001938,2]
[328409282,1717359042370,-236.773,0.0001938,2]
[328409283,1717359042379,-225.261,0.0001938,2]
[328409284,1717359042387,-188.939,0.0001938,2]
[328409285,1717359042397,-439.838,0.0001938,2]
[328409286,1717359042406,-1546.0,0.0001938,2]
[328409287,1717359042415,-614.0,0.0001938,2]
[328409288,1717359042424,-808.0,0.0001938,2]
[328409289,1717359042433,-545.0,0.0001938,2]
[328409290,1717359042442,-872.03,0.00019863,2]
[328409291,1717359042452,-872.03,0.00019863,2]
[328409292,1717359042460,-286.42,0.00019863,2]
[328409293,1717359042470,-160.15277541,0.000199,2]
[328409294,1717359042479,-634.94381214,0.0002,2]
[328409295,1717359042488,-863.57303464,0.0002,2]
[328409296,1717359042497,-345.0,0.0002,2]
[328409297,1717359042506,-158.77642645,0.0002,2]
[328409298,1717359042516,-187.86289532,0.0002,2]
[328409299,1717359042525,-1121.13646,0.0002004,2]
[328409300,1717359042534,-150.0,0.00020137,2]
[328409301,1717359042543,-150.0,0.00020137,2]
[328409302,1717359042552,-326.77631639,0.00020333,2]
[328409303,1717359042561,-2639.84406125,0.00020545,2]
[328409304,1717359042570,-1000.0,0.00020599,2]
[328409305,1717359042581,-888.16,0.00020792,2]
[328409306,1717359042590,-1000.0,0.00021098,2]
[328409307,1717359042600,-552.57483757,0.000214,7]
[328409308,1717359042609,-2639.84406125,0.0002181,2]
[328409309,1717359042618,-600.0,0.000219,7]
[328409310,1717359042627,-442.7,0.00021918,2]
[328409311,1717359042636,-151.0,0.00021918,2]
[328409312,1717359042645,-291.466027,0.00021918,2]
[328409313,1717359042654,-250.0,0.00021918,2]
[328409314,1717359042663,-11832.2,0.00021931,2]
[328409315,1717359042672,-289.0,0.00021931,2]
[328409316,1717359042681,-5142.0,0.00021931,2]
[328409317,1717359042690,-789.37013607,0.00022,2]
[328409318,1717359042699,-150.0,0.0002238,2]
[328409319,1717359042708,-713.376,0.0002238,2]
[328409320,1717359042717,-151.0,0.00022673,7]
[328409321,1717359042726,-151.0,0.00022673,7]
[328409322,1717359042735,-151.0,0.00022673,7]
[328409323,1717359042744,-151.0,0.00022673,7]
[328409324,1717359042754,-151.0,0.00022673,7]
[328409325,1717359042768,-151.0,0.00022673,7]
[328409326,1717359042777,-151.0,0.00022673,7]
[328409327,1717359042786,-151.0,0.00022673,7]
[328409328,1717359042795,-151.0,0.00022673,7]
[328409329,1717359042806,-152.410268,0.00022673,7]
[328409330,1717359042815,-151.0,0.00022673,7]
[328409331,1717359042825,-151.0,0.00022673,7]
[328409332,1717359042834,-301.254228,0.00022673,7]
[328409333,1717359042844,-151.0,0.00022673,7]
[328409334,1717359042853,-365.141666,0.00022673,7]
[328409335,1717359042862,-365.141666,0.00022673,7]
[328409337,1717359042872,-269.014557,0.00022673,7]
[328409339,1717359042881,-269.014557,0.00022673,7]
[328409340,1717359042890,-151.0,0.00022673,7]
[328409341,1717359042900,-151.0,0.00022673,7]
[328409342,1717359042909,-151.0,0.00022673,7]
[328409343,1717359042918,-151.0,0.00022673,7]
[328409344,1717359042928,-151.0,0.00022673,7]
[328409345,1717359042938,-381.318762,0.00022673,7]
[328409346,1717359042947,-151.0,0.00022673,7]
[328409356,1717359043090,-381.318762,0.00022673,7]
[328409357,1717359043100,-151.0,0.00022673,7]
[328409358,1717359043109,-151.0,0.00022673,7]
[328409359,1717359043119,-273.353561,0.00022673,7]
[328409360,1717359043128,-151.0,0.00022673,7]
[328409361,1717359043137,-818.315984,0.00022673,7]
[328409362,1717359043146,-818.315984,0.00022673,7]
[328409363,1717359043156,-151.0,0.00022673,7]
[328409364,1717359043165,-217.51719,0.00022673,7]
[328409365,1717359043174,-586.550055,0.00022673,7]
[328409366,1717359043184,-586.550055,0.00022673,7]
[328409367,1717359043193,-151.0,0.00022673,7]
[328409368,1717359043203,-151.0,0.00022673,7]
[328409369,1717359043212,-151.0,0.00022673,7]
[328409370,1717359043221,-153.733721,0.00022673,7]
[328409371,1717359043231,-34962.50609875,0.000229,5]
[328409372,1717359043240,-270.861383,0.000229,7]
[328409373,1717359043249,-800.418302,0.000229,7]
[328409374,1717359043259,-151.0,0.000229,7]
[328409375,1717359043268,-800.418302,0.000229,7]
[328409376,1717359043277,-696.759044,0.000229,7]
[328409377,1717359043286,-218.345752,0.000229,7]
[328409378,1717359043295,-696.759044,0.000229,7]
[328409379,1717359043304,-218.345752,0.000229,7]
[328409380,1717359043313,-151.0,0.000229,7]
[328409381,1717359043322,-411.99597,0.000229,7]
[328409382,1717359043331,-411.99597,0.000229,7]
[328409383,1717359043340,-270.41057,0.000229,7]
[328409384,1717359043349,-151.0,0.000229,7]
[328409385,1717359043357,-151.0,0.000229,7]
[328409386,1717359043366,-585.685009,0.000229,7]
[328409387,1717359043375,-151.0,0.000229,7]
[328409388,1717359043384,-585.685009,0.000229,7]
[328409389,1717359043393,-151.0,0.000229,7]
[328409390,1717359043401,-2554.224414,0.000229,7]
[328409391,1717359043411,-2554.224414,0.000229,7]
[328409392,1717359043420,-151.0,0.000229,7]
[328409393,1717359043428,-151.0,0.000229,7]
[328409394,1717359043437,-151.0,0.000229,7]
[328409395,1717359043447,-151.0,0.000229,7]
[328409396,1717359043455,-1742.745998,0.000229,7]
[328409397,1717359043465,-1742.745998,0.000229,7]
[328409398,1717359043474,-151.0,0.000229,7]
[328409399,1717359043483,-204.519669,0.000229,7]
[328409400,1717359043492,-204.519669,0.000229,7]
[328409401,1717359043502,-240.581603,0.000229,7]
[328409402,1717359043511,-151.0,0.000229,7]
[328409403,1717359043520,-240.581603,0.000229,7]
[328409404,1717359043529,-151.0,0.000229,7]
[328409405,1717359043538,-2278.514732,0.000229,7]
[328409406,1717359043547,-2278.514732,0.000229,7]
[328409407,1717359043557,-888.16,0.00023056,2]
[328409408,1717359043566,-2639.84406125,0.00023076,2]
[328409409,1717359043575,-180.0,0.0002423,2]
[328409410,1717359043586,-2639.84406125,0.00024341,2]
[328409411,1717359043594,-170.77,0.00024384,2]
[328409412,1717359043604,-150.76,0.00024384,2]
[328409413,1717359043613,-169.47,0.00024384,2]
[328409414,1717359043622,-157.01,0.00024384,2]
[328409415,1717359043631,-500.57,0.00024384,2]
[328409416,1717359043640,-331.410989,0.00024552,2]
[328409418,1717359043649,-838.89643385,0.00024798,2]
[328409420,1717359043659,-838.89643382,0.00024798,2]
[328409422,1717359043668,-838.89643382,0.00024798,2]
[328409423,1717359043677,-838.89643382,0.00024798,2]
[328409424,1717359043686,-838.89643382,0.00024798,2]
[328409425,1717359043695,-838.89643382,0.00024798,2]
[328409426,1717359043703,-1204.42170612,0.00024799,2]
[328409427,1717359043713,-1204.4217061,0.00024799,2]
[328409428,1717359043722,-1204.4217061,0.00024799,2]
[328409429,1717359043731,-1204.4217061,0.00024799,2]
[328409430,1717359043740,-1204.4217061,0.00024799,2]
[328409431,1717359043749,-1204.4217061,0.00024799,2]
[328409432,1717359043758,-331.410989,0.00024859,2]
[328409433,1717359043772,-6786.64428082,0.000249,2]
[328409434,1717359043781,-154.412343,0.000249,7]
[328409435,1717359043791,-152.535288,0.000249,7]
[328409436,1717359043801,-151.0,0.000249,7]
[328409437,1717359043812,-172.972946,0.000249,7]
[328409438,1717359043821,-172.972946,0.000249,7]
[328409439,1717359043831,-151.0,0.000249,7]
[328409440,1717359043842,-151.0,0.000249,7]
[328409441,1717359043851,-151.0,0.000249,7]
[328409442,1717359043861,-151.0,0.000249,7]
[328409443,1717359043870,-325.53303523,0.00025,2]
[328409444,1717359043879,-160.44041001,0.00025,2]
[328409445,1717359043888,-160.0,0.00025,2]
[328409446,1717359043897,-1250.0,0.00025,2]
[328409447,1717359043907,-331.410989,0.00025166,2]
[328409448,1717359043917,-888.16,0.0002532,2]
[328409449,1717359043926,-331.410989,0.00025473,2]
[328409450,1717359043935,-2639.84406125,0.00025607,2]
[328409451,1717359043944,-331.410989,0.0002578,2]
[328409452,1717359043953,-896.16003082,0.00025799,2]
[328409453,1717359043963,-1204.4217061,0.00025867,2]
[328409454,1717359043972,-838.89643382,0.000259,2]
[328409455,1717359043981,-1581.87079265,0.00026164,2]
[328409456,1717359043990,-150.0,0.00026164,2]
[328409457,1717359044000,-150.0,0.00026164,2]
[328409458,1717359044009,-150.0,0.00026164,2]
[328409459,1717359044019,-2053.44124277,0.000266,2]
[328409460,1717359044028,-41371.3762158,0.00026687,7]
[328409461,1717359044038,-6229.48739358,0.00026687,7]
[328409462,1717359044047,-326.77631639,0.00026767,2]
[328409463,1717359044057,-151.0,0.00026809,5]
[328409464,1717359044066,-2639.84406125,0.00026872,2]
[328409465,1717359044076,-200.324694,0.00027,2]
[328409466,1717359044086,-1300.0,0.00027,2]
[328409467,1717359044095,-150.0,0.00027,2]
[328409468,1717359044104,-151.0,0.0002713,7]
[328409469,1717359044114,-151.0,0.0002713,7]
[328409470,1717359044123,-151.0,0.00027248,7]
[328409471,1717359044133,-151.0,0.00027248,7]
[328409472,1717359044142,-151.0,0.00027248,7]
[328409473,1717359044151,-151.0,0.00027248,7]
[328409474,1717359044160,-151.0,0.00027248,7]
[328409475,1717359044169,-365.141666,0.00027248,7]
[328409476,1717359044178,-365.141666,0.00027248,7]
[328409477,1717359044187,-269.014557,0.00027248,7]
[328409478,1717359044196,-269.014557,0.00027248,7]
[328409479,1717359044205,-151.0,0.00027248,7]
[328409480,1717359044214,-151.0,0.00027248,7]
[328409481,1717359044223,-151.0,0.00027248,7]
[328409482,1717359044232,-151.0,0.00027248,7]
[328409483,1717359044242,-381.318762,0.00027248,7]
[328409484,1717359044251,-151.0,0.00027248,7]
[328409485,1717359044260,-381.318762,0.00027248,7]
[328409486,1717359044269,-281.853618,0.00027248,7]
[328409487,1717359044278,-151.0,0.00027248,7]
[328409488,1717359044287,-151.0,0.00027248,7]
[328409489,1717359044297,-818.315984,0.00027248,7]
[328409490,1717359044307,-818.315984,0.00027248,7]
[328409491,1717359044316,-296.653335,0.00027248,7]
[328409492,1717359044325,-586.550055,0.00027248,7]
[328409493,1717359044334,-586.550055,0.00027248,7]
[328409494,1717359044343,-151.0,0.00027248,7]
[328409495,1717359044353,-151.0,0.00027248,7]
[328409496,1717359044362,-151.0,0.00027248,7]
[328409497,1717359044372,-3888.23499441,0.00027389,2]
[328409498,1717359044381,-151.0,0.00027389,7]
[328409499,1717359044390,-806.82910337,0.0002739,2]
[328409500,1717359044399,-151.0,0.00027397,7]
[328409501,1717359044408,-172.972946,0.00027397,7]
[328409502,1717359044417,-172.972946,0.00027397,7]
[328409503,1717359044426,-151.0,0.00027397,7]
[328409504,1717359044436,-151.0,0.00027397,7]
[328409505,1717359044445,-151.0,0.00027397,7]
[328409506,1717359044455,-800.418302,0.00027397,7]
[328409507,1717359044465,-151.0,0.00027397,7]
[328409508,1717359044474,-800.418302,0.00027397,7]
[328409509,1717359044483,-696.759044,0.00027397,7]
[328409510,1717359044493,-218.345752,0.00027397,7]
[328409511,1717359044503,-696.759044,0.00027397,7]
[328409512,1717359044512,-218.345752,0.00027397,7]
[328409513,1717359044520,-151.0,0.00027397,7]
[328409514,1717359044530,-411.99597,0.00027397,7]
[328409515,1717359044538,-411.99597,0.00027397,7]
[328409516,1717359044549,-151.0,0.00027397,7]
[328409517,1717359044560,-151.0,0.00027397,7]
[328409518,1717359044570,-585.685009,0.00027397,7]
[328409519,1717359044582,-151.0,0.00027397,7]
[328409520,1717359044592,-585.685009,0.00027397,7]
[328409521,1717359044602,-218.979978,0.00027397,7]
[328409522,1717359044610,-2554.224414,0.00027397,7]
[328409523,1717359044619,-2554.224414,0.00027397,7]
[328409524,1717359044629,-151.0,0.00027397,7]
[328409525,1717359044638,-151.0,0.00027397,7]
[328409526,1717359044647,-151.0,0.00027397,7]
[328409527,1717359044656,-1742.745998,0.00027397,7]
[328409528,1717359044665,-1742.745998,0.00027397,7]
[328409529,1717359044674,-151.0,0.00027397,7]
[328409530,1717359044683,-204.519669,0.00027397,7]
[328409531,1717359044693,-240.581603,0.00027397,7]
[328409532,1717359044703,-204.519669,0.00027397,7]
[328409533,1717359044712,-151.0,0.00027397,7]
[328409534,1717359044722,-240.581603,0.00027397,7]
[328409535,1717359044732,-162.74545,0.00027397,7]
[328409536,1717359044741,-2278.514732,0.00027397,7]
[328409537,1717359044750,-2278.514732,0.00027397,7]
[328409538,1717359044760,-150.0,0.00027397,2]
[328409539,1717359044774,-9738.38,0.00027397,2]
[328409540,1717359044783,-4417.99,0.00027397,2]
[328409541,1717359044792,-14498.13,0.00027397,2]
[328409542,1717359044802,-29999.99,0.00027397,2]
[328409543,1717359044811,-181.39,0.000274,2]
[328409544,1717359044820,-151.0,0.000275,7]
[328409545,1717359044830,-151.0,0.000275,7]
[328409546,1717359044840,-888.16,0.00027584,2]
[328409547,1717359044849,-1204.4217061,0.00027878,2]
[328409548,1717359044859,-838.89643382,0.000279,2]
[328409549,1717359044869,-1013.6413283,0.00028,10]
[328409550,1717359044878,-1001.0,0.00028,6]
[328409551,1717359044888,-4905.0,0.00028,5]
[328409552,1717359044897,-151.0,0.00028105,7]
[328409553,1717359044907,-150.0,0.00028118,2]
[328409554,1717359044916,-2639.84406125,0.00028138,2]
[328409555,1717359044925,-1500.0,0.00028321,2]
[328409556,1717359044935,-1500.0,0.00028381,2]
[328409557,1717359044944,-872.03,0.0002863,2]
[328409558,1717359044953,-416.68,0.0002863,2]
[328409559,1717359044962,-416.68,0.0002863,2]
[328409560,1717359044971,-872.03,0.0002863,2]
[328409561,1717359044981,-416.68,0.0002863,2]
[328409562,1717359044990,-872.03,0.0002863,2]
[328409563,1717359044999,-416.68,0.0002863,2]
[328409564,1717359045009,-356.04,0.0002863,2]
[328409565,1717359045018,-416.68,0.0002863,2]
[328409566,1717359045027,-352.61,0.0002863,2]
[328409567,1717359045036,-10587.55279387,0.00028839,2]
[328409568,1717359045045,-150.0,0.00028839,2]
[328409569,1717359045055,-500.0,0.00028839,2]
[328409570,1717359045064,-500.0,0.00028848,2]
[328409571,1717359045073,-500.0,0.00028857,2]
[328409572,1717359045084,-150.0,0.00028924,2]
[328409573,1717359045093,-1500.0,0.00028972,2]
[328409574,1717359045102,-4163.8478063,0.00029,2]
[328409575,1717359045111,-1039.72119631,0.00029,2]
[328409576,1717359045121,-156.39078588,0.00029,7]
[328409577,1717359045130,-507.20044859,0.00029,2]
[328409578,1717359045140,-1000.0,0.00029,7]
[328409579,1717359045149,-200.0,0.00029,2]
[328409580,1717359045278,-1350.0,0.00029,2]
[328409581,1717359045287,-150.0,0.00029031,2]
[328409582,1717359045296,-150.0,0.00029042,2]
[328409583,1717359045305,-150.0,0.00029061,2]
[328409584,1717359045315,-150.0,0.00029094,2]
[328409585,1717359045324,-150.0,0.00029101,2]
[328409586,1717359045335,-150.0,0.00029129,2]
[328409587,1717359045345,-150.0,0.00029133,2]
[328409588,1717359045356,-150.0,0.00029152,2]
[328409589,1717359045366,-1500.0,0.00029168,2]
[328409590,1717359045376,-150.0,0.00029172,2]
[328409591,1717359045387,-150.0,0.00029204,2]
[328409592,1717359045396,-150.0,0.00029214,2]
[328409593,1717359045407,-150.0,0.00029221,2]
[328409594,1717359045416,-150.0,0.00029224,2]
[328409595,1717359045426,-1500.0,0.0002928,2]
[328409596,1717359045439,-150.0,0.00029299,2]
[328409597,1717359045449,-1500.0,0.00029304,2]
[328409598,1717359045459,-150.0,0.00029346,2]
[328409599,1717359045470,-150.0,0.00029347,2]
[328409600,1717359045481,-150.0,0.00029367,2]
[328409601,1717359045491,-150.0,0.00029383,2]
[328409602,1717359045501,-1500.0,0.0002939,2]
[328409603,1717359045510,-151.0,0.00029402,7]
[328409604,1717359045520,-2639.84406125,0.00029403,2]
[328409605,1717359045529,-150.0,0.0002943,2]
[328409606,1717359045539,-150.0,0.00029439,2]
[328409607,1717359045548,-1500.0,0.0002944,2]
[328409608,1717359045557,-1500.0,0.00029443,2]
[328409609,1717359045568,-150.0,0.00029443,2]
[328409610,1717359045581,-150.0,0.00029473,2]
[328409611,1717359045590,-1000.0,0.000295,2]
[328409612,1717359045599,-2955.028278,0.000295,2]
[328409613,1717359045608,-150.0,0.00029501,2]
[328409614,1717359045619,-150.0,0.00029517,2]
[328409615,1717359045630,-150.0,0.00029518,2]
[328409616,1717359045640,-150.0,0.00029555,2]
[328409617,1717359045651,-150.0,0.0002956,2]
[328409618,1717359045661,-150.0,0.00029578,2]
[328409619,1717359045670,-150.0,0.00029579,2]
[328409620,1717359045679,-150.0,0.00029583,2]
[328409621,1717359045688,-150.0,0.00029587,2]
[328409622,1717359045697,-150.0,0.00029589,2]
[328409623,1717359045708,-1500.0,0.00029597,2]
[328409624,1717359045717,-10000.0,0.000296,2]
[328409625,1717359045726,-287.725939,0.000296,7]
[328409626,1717359045736,-151.0,0.000296,7]
[328409628,1717359045745,-151.0,0.000296,7]
[328409630,1717359045754,-151.0,0.000296,7]
[328409632,1717359045768,-365.141666,0.000296,7]
[328409634,1717359045779,-365.141666,0.000296,7]
[328409636,1717359045789,-269.014557,0.000296,7]
[328409638,1717359045799,-269.014557,0.000296,7]
[328409640,1717359045809,-151.0,0.000296,7]
[328409642,1717359045820,-162.155111,0.000296,7]
[328409644,1717359045829,-151.0,0.000296,7]
[328409646,1717359045840,-268.417667,0.000296,7]
[328409648,1717359045850,-381.318762,0.000296,7]
[328409651,1717359045860,-151.0,0.000296,7]
[328409654,1717359045870,-381.318762,0.000296,7]
[328409657,1717359045879,-151.0,0.000296,7]
[328409660,1717359045888,-151.0,0.000296,7]
[328409663,1717359045898,-818.315984,0.000296,7]
[328409665,1717359045907,-818.315984,0.000296,7]
[328409667,1717359045916,-586.550055,0.000296,7]
[328409669,1717359045926,-586.550055,0.000296,7]
[328409671,1717359045936,-151.0,0.000296,7]
[328409673,1717359045945,-151.0,0.000296,7]
[328409675,1717359045955,-151.0,0.000296,7]
[328409677,1717359045964,-150.0,0.00029625,2]
[328409679,1717359045974,-150.0,0.00029639,2]
[328409681,1717359045983,-150.0,0.00029648,2]
[328409683,1717359045993,-150.0,0.0002966,2]
[328409685,1717359046002,-1500.0,0.00029689,2]
[328409687,1717359046012,-151.0,0.00029691,7]
[328409689,1717359046021,-151.0,0.00029691,7]
[328409691,1717359046030,-151.0,0.00029691,7]
[328409693,1717359046042,-1000.0,0.000297,10]
[328409695,1717359046051,-150.0,0.00029739,2]
[328409697,1717359046060,-151.0,0.00029742,7]
[328409699,1717359046070,-151.0,0.00029766,7]
[328409700,1717359046080,-151.0,0.00029766,7]
[328409701,1717359046089,-150.0,0.00029766,2]
[328409702,1717359046099,-1500.0,0.00029767,2]
[328409703,1717359046108,-151.0,0.00029789,7]